[Event "Titled Tuesday Blitz July 6 2021"]
[White "Karttunen, Mika"]
[Black "Salem, A.R. Saleh"]
[WhiteFideId "502081"]
[BlackFideId "9301348"]
[WhiteElo "2343"]
[BlackElo "2642"]
[Result "1/2-1/2"]
[Round "02"]
[TimeControl "180+1"]
[Date "2021.07.06"]
[WhiteClock "0:00:19"]
[BlackClock "0:00:10"]

1. e4 {[%clk 0:03:00]}  c5 {[%clk 0:03:00]} 2. Nf3 {[%clk 0:03:00]}  d6 {[%clk 0:03:00]} 3. d4 {[%clk 0:03:01]}  cxd4 {[%clk 0:03:01]} 4. Nxd4 {[%clk 0:03:01]}  Nf6 {[%clk 0:03:02]} 5. Nc3 {[%clk 0:03:02]}  a6 {[%clk 0:03:03]} 6. Be2 {[%clk 0:03:02]}  e5 {[%clk 0:03:03]} 7. Nb3 {[%clk 0:03:02]}  Be7 {[%clk 0:03:03]} 8. O-O {[%clk 0:03:02]}  O-O {[%clk 0:03:04]} 9. Be3 {[%clk 0:03:01]}  Be6 {[%clk 0:03:04]} 10. a4 {[%clk 0:03:00]}  Nbd7 {[%clk 0:03:03]} 11. Qd2 {[%clk 0:02:58]}  Rc8 {[%clk 0:02:54]} 12. a5 {[%clk 0:02:57]}  Qc7 {[%clk 0:02:51]} 13. Rfc1 {[%clk 0:02:57]}  Rfd8 {[%clk 0:02:31]} 14. Nd5 {[%clk 0:02:49]}  Bxd5 {[%clk 0:02:24]} 15. exd5 {[%clk 0:02:49]}  Ne4 {[%clk 0:02:23]} 16. Qb4 {[%clk 0:02:43]}  f5 {[%clk 0:02:21]} 17. f4 {[%clk 0:02:33]}  Re8 {[%clk 0:02:08]} 18. Nd2 {[%clk 0:01:43]}  exf4 {[%clk 0:02:01]} 19. Bxf4 {[%clk 0:01:39]}  Bf6 {[%clk 0:02:02]} 20. Bd3 {[%clk 0:01:29]}  Bxb2 {[%clk 0:01:45]} 21. Bxe4 {[%clk 0:01:10]}  Bxc1 {[%clk 0:01:25]} 22. Rxc1 {[%clk 0:01:04]}  fxe4 {[%clk 0:01:22]} 23. Nxe4 {[%clk 0:00:59]}  Nf6 {[%clk 0:00:32]} 24. Nxd6 {[%clk 0:00:55]}  Nxd5 {[%clk 0:00:32]} 25. Nxe8 {[%clk 0:00:55]}  Qxf4 {[%clk 0:00:30]} 26. Qxf4 {[%clk 0:00:48]}  Nxf4 {[%clk 0:00:31]} 27. Nd6 {[%clk 0:00:48]}  Rc6 {[%clk 0:00:26]} 28. Rf1 {[%clk 0:00:47]}  Ne2+ {[%clk 0:00:22]} 29. Kf2 {[%clk 0:00:47]}  Rxc2 {[%clk 0:00:20]} 30. Ke3 {[%clk 0:00:39]}  g5 {[%clk 0:00:19]} 31. Ne4 {[%clk 0:00:37]}  Nf4 {[%clk 0:00:13]} 32. g3 {[%clk 0:00:37]}  Re2+ {[%clk 0:00:09]} 33. Kf3 {[%clk 0:00:37]}  Rxh2 {[%clk 0:00:05]} 34. gxf4 {[%clk 0:00:37]}  gxf4 {[%clk 0:00:05]} 35. Kxf4 {[%clk 0:00:37]}  Ra2 {[%clk 0:00:06]} 36. Rg1+ {[%clk 0:00:37]}  Kf7 {[%clk 0:00:06]} 37. Rg5 {[%clk 0:00:38]}  Ra4 {[%clk 0:00:05]} 38. Rh5 {[%clk 0:00:37]}  Kg6 {[%clk 0:00:05]} 39. Rd5 {[%clk 0:00:36]}  h5 {[%clk 0:00:05]} 40. Rg5+ {[%clk 0:00:35]}  Kh6 {[%clk 0:00:05]} 41. Rd5 {[%clk 0:00:35]}  h4 {[%clk 0:00:05]} 42. Re5 {[%clk 0:00:35]}  h3 {[%clk 0:00:06]} 43. Kg3 {[%clk 0:00:36]}  Ra3+ {[%clk 0:00:06]} 44. Kh2 {[%clk 0:00:36]}  Re3 {[%clk 0:00:06]} 45. Re8 {[%clk 0:00:34]}  Kg7 {[%clk 0:00:06]} 46. Re5 {[%clk 0:00:34]}  Kg6 {[%clk 0:00:04]} 47. Re7 {[%clk 0:00:30]}  Ra3 {[%clk 0:00:03]} 48. Re5 {[%clk 0:00:23]}  Re3 {[%clk 0:00:03]} 49. Rg5+ {[%clk 0:00:19]}  Kh6 {[%clk 0:00:03]} 50. Rg4 {[%clk 0:00:17]}  Ra3 {[%clk 0:00:03]} 51. Rh4+ {[%clk 0:00:10]}  Kg6 {[%clk 0:00:03]} 52. Rxh3 {[%clk 0:00:10]}  Rxa5 {[%clk 0:00:03]} 53. Rb3 {[%clk 0:00:10]}  Rb5 {[%clk 0:00:03]} 54. Rxb5 {[%clk 0:00:10]}  axb5 {[%clk 0:00:03]} 55. Kg3 {[%clk 0:00:10]}  b4 {[%clk 0:00:02]} 56. Kf3 {[%clk 0:00:11]}  Kf5 {[%clk 0:00:03]} 57. Ke3 {[%clk 0:00:12]}  Ke5 {[%clk 0:00:03]} 58. Nd2 {[%clk 0:00:13]}  Kd5 {[%clk 0:00:04]} 59. Kd3 {[%clk 0:00:13]}  b5 {[%clk 0:00:05]} 60. Nb3 {[%clk 0:00:14]}  Kc6 {[%clk 0:00:05]} 61. Kd4 {[%clk 0:00:14]}  Kd6 {[%clk 0:00:06]} 62. Ke4 {[%clk 0:00:15]}  Kc6 {[%clk 0:00:06]} 63. Kd4 {[%clk 0:00:16]}  Kd6 {[%clk 0:00:07]} 64. Ke4 {[%clk 0:00:16]}  Kc6 {[%clk 0:00:08]} 65. Ke5 {[%clk 0:00:17]}  Kd7 {[%clk 0:00:08]} 66. Kd5 {[%clk 0:00:17]}  Kc8 {[%clk 0:00:09]} 67. Kc5 {[%clk 0:00:18]}  Kd8 {[%clk 0:00:10]} 68. Kxb5 {[%clk 0:00:18]}  Kd7 {[%clk 0:00:10]} 69. Kxb4 {[%clk 0:00:19]} 1/2-1/2


[Site "https://www.chess.com"]

[Event "Titled Tuesday Blitz July 6 2021"]
[White "Khanin, Semen"]
[Black "Budiarti, Farah Yumna"]
[WhiteFideId "4111990"]
[BlackFideId "7107331"]
[WhiteElo "2521"]
[BlackElo "2467"]
[Result "0-1"]
[Round "02"]
[TimeControl "180+1"]
[Date "2021.07.06"]
[WhiteClock "0:00:53"]
[BlackClock "0:00:45"]

1. e4 {[%clk 0:03:00]}  c6 {[%clk 0:02:56]} 2. d4 {[%clk 0:03:00]}  d5 {[%clk 0:02:50]} 3. Nd2 {[%clk 0:03:00]}  dxe4 {[%clk 0:02:50]} 4. Nxe4 {[%clk 0:03:01]}  Bf5 {[%clk 0:02:50]} 5. Ng3 {[%clk 0:03:01]}  Bg6 {[%clk 0:02:50]} 6. h4 {[%clk 0:03:02]}  h6 {[%clk 0:02:50]} 7. Nf3 {[%clk 0:03:02]}  Nd7 {[%clk 0:02:50]} 8. h5 {[%clk 0:03:02]}  Bh7 {[%clk 0:02:50]} 9. Bd3 {[%clk 0:03:03]}  Bxd3 {[%clk 0:02:51]} 10. Qxd3 {[%clk 0:03:04]}  e6 {[%clk 0:02:51]} 11. Bd2 {[%clk 0:03:04]}  Ngf6 {[%clk 0:02:50]} 12. O-O-O {[%clk 0:03:05]}  Be7 {[%clk 0:02:51]} 13. Kb1 {[%clk 0:03:05]}  O-O {[%clk 0:02:43]} 14. Ne4 {[%clk 0:03:05]}  Nxe4 {[%clk 0:02:43]} 15. Qxe4 {[%clk 0:03:04]}  Nf6 {[%clk 0:02:43]} 16. Qe2 {[%clk 0:03:04]}  Qd5 {[%clk 0:02:43]} 17. Bc1 {[%clk 0:03:00]}  Qe4 {[%clk 0:02:42]} 18. Qc4 {[%clk 0:02:44]}  b5 {[%clk 0:02:37]} 19. Qd3 {[%clk 0:02:42]}  b4 {[%clk 0:02:33]} 20. Ne5 {[%clk 0:02:41]}  c5 {[%clk 0:02:25]} 21. Qg3 {[%clk 0:02:33]}  cxd4 {[%clk 0:02:07]} 22. Bxh6 {[%clk 0:02:33]}  Qh7 {[%clk 0:02:07]} 23. Ng6 {[%clk 0:02:20]}  Rfe8 {[%clk 0:01:47]} 24. Rxd4 {[%clk 0:01:46]}  Qxh6 {[%clk 0:01:45]} 25. Rhd1 {[%clk 0:01:33]}  fxg6 {[%clk 0:01:23]} 26. hxg6 {[%clk 0:01:32]}  Nh5 {[%clk 0:01:23]} 27. Qg4 {[%clk 0:01:30]}  Bf6 {[%clk 0:01:23]} 28. Rd7 {[%clk 0:01:30]}  Qg5 {[%clk 0:01:21]} 29. Qe4 {[%clk 0:01:28]}  Qf5 {[%clk 0:01:19]} 30. Qb7 {[%clk 0:01:27]}  Qxg6 {[%clk 0:01:16]} 31. g3 {[%clk 0:01:24]}  Rac8 {[%clk 0:01:13]} 32. R1d3 {[%clk 0:01:24]}  Qf5 {[%clk 0:01:09]} 33. a3 {[%clk 0:01:19]}  bxa3 {[%clk 0:01:08]} 34. g4 {[%clk 0:01:05]}  Qxf2 {[%clk 0:00:56]} 35. Rd2 {[%clk 0:00:57]}  Qf1+ {[%clk 0:00:56]} 36. Rd1 {[%clk 0:00:58]}  Qc4 {[%clk 0:00:53]} 37. gxh5 {[%clk 0:00:56]}  Qxc2+ {[%clk 0:00:50]} 38. Ka2 {[%clk 0:00:57]}  axb2 {[%clk 0:00:45]} 39. Ka3 {[%clk 0:00:53]} 0-1


[Site "https://www.chess.com"]

[Event "Titled Tuesday Blitz July 6 2021"]
[White "Kobo, Ori"]
[Black "Makhmudov, Shukhrat"]
[WhiteFideId "2812320"]
[BlackFideId "14200775"]
[WhiteElo "2431"]
[BlackElo "2135"]
[Result "1-0"]
[Round "02"]
[TimeControl "180+1"]
[Date "2021.07.06"]
[WhiteClock "0:01:01"]
[BlackClock "0:00:27"]

1. e4 {[%clk 0:03:00]}  e5 {[%clk 0:02:59]} 2. Nf3 {[%clk 0:03:01]}  Nc6 {[%clk 0:02:54]} 3. d4 {[%clk 0:03:01]}  exd4 {[%clk 0:02:54]} 4. Nxd4 {[%clk 0:03:02]}  Nf6 {[%clk 0:02:54]} 5. Nxc6 {[%clk 0:03:01]}  bxc6 {[%clk 0:02:54]} 6. e5 {[%clk 0:03:01]}  Qe7 {[%clk 0:02:54]} 7. Qe2 {[%clk 0:03:02]}  Nd5 {[%clk 0:02:54]} 8. g3 {[%clk 0:03:02]}  Qe6 {[%clk 0:02:46]} 9. Bg2 {[%clk 0:03:01]}  h5 {[%clk 0:02:24]} 10. O-O {[%clk 0:02:44]}  h4 {[%clk 0:02:21]} 11. c4 {[%clk 0:02:44]}  Nb6 {[%clk 0:02:13]} 12. b3 {[%clk 0:02:43]}  hxg3 {[%clk 0:02:08]} 13. hxg3 {[%clk 0:02:43]}  Bc5 {[%clk 0:02:01]} 14. Nd2 {[%clk 0:02:24]}  Bd4 {[%clk 0:01:57]} 15. Rb1 {[%clk 0:02:22]}  Bb7 {[%clk 0:01:42]} 16. Bb2 {[%clk 0:02:08]}  Qh6 {[%clk 0:01:10]} 17. Rfd1 {[%clk 0:01:41]}  Qh2+ {[%clk 0:01:05]} 18. Kf1 {[%clk 0:01:41]}  c5 {[%clk 0:01:05]} 19. Bxb7 {[%clk 0:01:26]}  c6 {[%clk 0:01:01]} 20. Qf3 {[%clk 0:01:19]}  Rb8 {[%clk 0:00:45]} 21. Bxd4 {[%clk 0:01:18]}  cxd4 {[%clk 0:00:43]} 22. Ba6 {[%clk 0:01:14]}  c5 {[%clk 0:00:34]} 23. Ke2 {[%clk 0:01:08]}  Qh7 {[%clk 0:00:27]} 24. Rh1 {[%clk 0:01:01]} 1-0


[Site "https://www.chess.com"]

[Event "Titled Tuesday Blitz July 6 2021"]
[White "Koelle, Tobias"]
[Black "Arutinian, David"]
[WhiteFideId "16207378"]
[BlackFideId "13601741"]
[WhiteElo "2364"]
[BlackElo "2525"]
[Result "1-0"]
[Round "02"]
[TimeControl "180+1"]
[Date "2021.07.06"]
[WhiteClock "0:00:03"]
[BlackClock "0:00:17"]

1. c4 {[%clk 0:02:53]}  e5 {[%clk 0:02:57]} 2. Nc3 {[%clk 0:02:51]}  Nf6 {[%clk 0:02:57]} 3. Nf3 {[%clk 0:02:51]}  Nc6 {[%clk 0:02:56]} 4. e4 {[%clk 0:02:51]}  d6 {[%clk 0:02:55]} 5. d4 {[%clk 0:02:50]}  Bg4 {[%clk 0:02:55]} 6. d5 {[%clk 0:02:39]}  Nd4 {[%clk 0:02:53]} 7. Qa4+ {[%clk 0:02:35]}  Bd7 {[%clk 0:02:49]} 8. Qd1 {[%clk 0:02:34]}  Bg4 {[%clk 0:02:48]} 9. Qa4+ {[%clk 0:02:34]}  Bd7 {[%clk 0:02:48]} 10. Qd1 {[%clk 0:02:33]}  Nxf3+ {[%clk 0:02:48]} 11. Qxf3 {[%clk 0:02:32]}  g6 {[%clk 0:02:48]} 12. h3 {[%clk 0:02:28]}  Bg7 {[%clk 0:02:48]} 13. g4 {[%clk 0:02:29]}  O-O {[%clk 0:02:47]} 14. Qg2 {[%clk 0:02:28]}  c6 {[%clk 0:02:42]} 15. Be3 {[%clk 0:02:28]}  cxd5 {[%clk 0:02:42]} 16. cxd5 {[%clk 0:02:29]}  Qa5 {[%clk 0:02:40]} 17. Be2 {[%clk 0:02:14]}  Rfc8 {[%clk 0:02:25]} 18. O-O {[%clk 0:02:07]}  b5 {[%clk 0:02:24]} 19. a3 {[%clk 0:02:01]}  b4 {[%clk 0:02:24]} 20. axb4 {[%clk 0:02:00]}  Qxb4 {[%clk 0:02:25]} 21. Rfb1 {[%clk 0:01:56]}  a5 {[%clk 0:02:22]} 22. g5 {[%clk 0:01:51]}  Ne8 {[%clk 0:02:11]} 23. h4 {[%clk 0:01:48]}  a4 {[%clk 0:02:04]} 24. Bd2 {[%clk 0:01:39]}  Nc7 {[%clk 0:01:43]} 25. Qf1 {[%clk 0:01:32]}  Qd4 {[%clk 0:01:33]} 26. Be3 {[%clk 0:01:29]}  Qb4 {[%clk 0:01:33]} 27. Bd2 {[%clk 0:01:29]}  f5 {[%clk 0:01:32]} 28. gxf6 {[%clk 0:01:26]}  Bxf6 {[%clk 0:01:32]} 29. h5 {[%clk 0:01:26]}  gxh5 {[%clk 0:01:31]} 30. Ra3 {[%clk 0:00:57]}  Kh8 {[%clk 0:01:29]} 31. Kh1 {[%clk 0:00:56]}  Rg8 {[%clk 0:01:28]} 32. Qe1 {[%clk 0:00:49]}  Rg7 {[%clk 0:01:09]} 33. Bxh5 {[%clk 0:00:32]}  Rag8 {[%clk 0:01:05]} 34. Nb5 {[%clk 0:00:26]}  Qxb5 {[%clk 0:01:04]} 35. Bh6 {[%clk 0:00:17]}  Rg6 {[%clk 0:00:53]} 36. Bxg6 {[%clk 0:00:17]}  Rxg6 {[%clk 0:00:54]} 37. Qc1 {[%clk 0:00:12]}  Ne8 {[%clk 0:00:51]} 38. Rg3 {[%clk 0:00:12]}  Rxg3 {[%clk 0:00:50]} 39. fxg3 {[%clk 0:00:12]}  Qd3 {[%clk 0:00:50]} 40. Qe1 {[%clk 0:00:12]}  Bg4 {[%clk 0:00:46]} 41. Kg1 {[%clk 0:00:11]}  Bf3 {[%clk 0:00:43]} 42. Rc1 {[%clk 0:00:10]}  Bxe4 {[%clk 0:00:41]} 43. Rc8 {[%clk 0:00:10]}  Bg6 {[%clk 0:00:41]} 44. Qf2 {[%clk 0:00:09]}  Qd1+ {[%clk 0:00:30]} 45. Kh2 {[%clk 0:00:06]}  Qh5+ {[%clk 0:00:30]} 46. Kg1 {[%clk 0:00:07]}  Qxh6 {[%clk 0:00:27]} 47. Qxf6+ {[%clk 0:00:06]}  Qg7 {[%clk 0:00:28]} 48. Qe6 {[%clk 0:00:04]}  Qf8 {[%clk 0:00:27]} 49. Ra8 {[%clk 0:00:02]}  Bf7 {[%clk 0:00:22]} 50. Qd7 {[%clk 0:00:02]}  Kg8 {[%clk 0:00:21]} 51. Rxa4 {[%clk 0:00:02]}  Bxd5 {[%clk 0:00:20]} 52. Ra5 {[%clk 0:00:01]}  Bf7 {[%clk 0:00:19]} 53. Ra7 {[%clk 0:00:01]}  h6 {[%clk 0:00:20]} 54. b4 {[%clk 0:00:01]}  Kg7 {[%clk 0:00:20]} 55. b5 {[%clk 0:00:02]}  Nf6 {[%clk 0:00:19]} 56. Qc7 {[%clk 0:00:02]}  Qe8 {[%clk 0:00:19]} 57. b6 {[%clk 0:00:02]}  e4 {[%clk 0:00:20]} 58. b7 {[%clk 0:00:02]}  e3 {[%clk 0:00:20]} 59. b8=Q {[%clk 0:00:03]}  e2 {[%clk 0:00:20]} 60. Qxe8 {[%clk 0:00:03]}  Nd7 {[%clk 0:00:17]} 61. Qcxd7 {[%clk 0:00:03]}  e1=Q+ {[%clk 0:00:17]} 62. Qxe1 {[%clk 0:00:03]} 1-0


[Site "https://www.chess.com"]

[Event "Titled Tuesday Blitz July 6 2021"]
[White "Kukhmazov, Arsen"]
[Black "Prraneeth Vuppala"]
[WhiteFideId "24108260"]
[BlackFideId "46622373"]
[WhiteElo "2453"]
[BlackElo "1759"]
[Result "1-0"]
[Round "02"]
[TimeControl "180+1"]
[Date "2021.07.06"]
[WhiteClock "0:01:29"]
[BlackClock "0:00:15"]

1. d4 {[%clk 0:02:57]}  Nf6 {[%clk 0:02:59]} 2. c4 {[%clk 0:02:57]}  g6 {[%clk 0:02:59]} 3. g3 {[%clk 0:02:58]}  c6 {[%clk 0:02:58]} 4. Bg2 {[%clk 0:02:58]}  d5 {[%clk 0:02:58]} 5. e3 {[%clk 0:02:58]}  Bg7 {[%clk 0:02:57]} 6. Ne2 {[%clk 0:02:59]}  O-O {[%clk 0:02:56]} 7. O-O {[%clk 0:03:00]}  Bf5 {[%clk 0:02:55]} 8. Qb3 {[%clk 0:02:57]}  Qb6 {[%clk 0:02:46]} 9. Nbc3 {[%clk 0:02:57]}  dxc4 {[%clk 0:02:35]} 10. Qxc4 {[%clk 0:02:57]}  Nbd7 {[%clk 0:02:14]} 11. e4 {[%clk 0:02:52]}  Be6 {[%clk 0:02:09]} 12. Qa4 {[%clk 0:02:52]}  Rfd8 {[%clk 0:01:53]} 13. Nf4 {[%clk 0:02:46]}  Nf8 {[%clk 0:01:43]} 14. Rd1 {[%clk 0:02:32]}  Bg4 {[%clk 0:00:50]} 15. f3 {[%clk 0:02:32]}  Bd7 {[%clk 0:00:50]} 16. Nfe2 {[%clk 0:02:25]}  c5 {[%clk 0:00:49]} 17. Qb3 {[%clk 0:02:24]}  Qxb3 {[%clk 0:00:48]} 18. axb3 {[%clk 0:02:24]}  cxd4 {[%clk 0:00:47]} 19. Nxd4 {[%clk 0:02:25]}  Ne6 {[%clk 0:00:47]} 20. Be3 {[%clk 0:02:26]}  Nxd4 {[%clk 0:00:46]} 21. Bxd4 {[%clk 0:02:27]}  a6 {[%clk 0:00:46]} 22. Bb6 {[%clk 0:02:22]}  Rdc8 {[%clk 0:00:44]} 23. e5 {[%clk 0:02:23]}  Be6 {[%clk 0:00:32]} 24. exf6 {[%clk 0:02:23]}  Bxf6 {[%clk 0:00:33]} 25. Nd5 {[%clk 0:02:20]}  Bxb2 {[%clk 0:00:30]} 26. Nxe7+ {[%clk 0:02:20]}  Kg7 {[%clk 0:00:30]} 27. Nxc8 {[%clk 0:02:20]}  Bxa1 {[%clk 0:00:30]} 28. Rxa1 {[%clk 0:02:12]}  Rxc8 {[%clk 0:00:31]} 29. f4 {[%clk 0:02:10]}  Bxb3 {[%clk 0:00:31]} 30. Bxb7 {[%clk 0:02:10]}  Rc2 {[%clk 0:00:28]} 31. Bd4+ {[%clk 0:02:08]}  Kh6 {[%clk 0:00:27]} 32. g4 {[%clk 0:01:53]}  Bc4 {[%clk 0:00:19]} 33. Ra3 {[%clk 0:01:29]}  g5 {[%clk 0:00:16]} 34. Rh3+ {[%clk 0:01:28]}  Kg6 {[%clk 0:00:15]} 35. f5# {[%clk 0:01:29]} 1-0


[Site "https://www.chess.com"]

[Event "Titled Tuesday Blitz July 6 2021"]
[White "LEGENYA1998"]
[Black "Noritsyn, Nikolay"]
[BlackFideId "2604922"]
[WhiteElo "2455"]
[BlackElo "2527"]
[Result "1/2-1/2"]
[Round "02"]
[TimeControl "180+1"]
[Date "2021.07.06"]
[WhiteClock "0:01:43"]
[BlackClock "0:00:38"]

1. e4 {[%clk 0:03:00]}  e5 {[%clk 0:02:46]} 2. Nf3 {[%clk 0:03:00]}  d6 {[%clk 0:02:46]} 3. d4 {[%clk 0:03:00]}  exd4 {[%clk 0:02:47]} 4. Nxd4 {[%clk 0:03:00]}  Nf6 {[%clk 0:02:47]} 5. Nc3 {[%clk 0:03:00]}  Be7 {[%clk 0:02:48]} 6. g3 {[%clk 0:02:59]}  Nc6 {[%clk 0:02:48]} 7. Bg2 {[%clk 0:02:59]}  Nxd4 {[%clk 0:02:48]} 8. Qxd4 {[%clk 0:02:59]}  O-O {[%clk 0:02:48]} 9. h3 {[%clk 0:02:57]}  c6 {[%clk 0:02:47]} 10. O-O {[%clk 0:02:57]}  Qb6 {[%clk 0:02:41]} 11. Qxb6 {[%clk 0:02:55]}  axb6 {[%clk 0:02:42]} 12. a4 {[%clk 0:02:56]}  b5 {[%clk 0:02:35]} 13. b3 {[%clk 0:02:53]}  Nd7 {[%clk 0:02:19]} 14. Bd2 {[%clk 0:02:43]}  bxa4 {[%clk 0:02:07]} 15. Rxa4 {[%clk 0:02:42]}  Rxa4 {[%clk 0:02:07]} 16. bxa4 {[%clk 0:02:39]}  Ne5 {[%clk 0:02:02]} 17. Rb1 {[%clk 0:02:38]}  Bf6 {[%clk 0:01:58]} 18. Ne2 {[%clk 0:02:32]}  Re8 {[%clk 0:01:52]} 19. Rd1 {[%clk 0:02:12]}  Kf8 {[%clk 0:01:28]} 20. Bb4 {[%clk 0:02:09]}  c5 {[%clk 0:01:26]} 21. Bc3 {[%clk 0:02:05]}  Ke7 {[%clk 0:00:58]} 22. f4 {[%clk 0:02:04]}  Nd7 {[%clk 0:00:54]} 23. Bxf6+ {[%clk 0:01:59]}  Nxf6 {[%clk 0:00:55]} 24. Nc3 {[%clk 0:01:59]}  h5 {[%clk 0:00:42]} 25. Rb1 {[%clk 0:01:54]}  Kd7 {[%clk 0:00:39]} 26. Rd1 {[%clk 0:01:49]}  Ke7 {[%clk 0:00:38]} 27. Rb1 {[%clk 0:01:44]}  Kd7 {[%clk 0:00:38]} 28. Rd1 {[%clk 0:01:43]}  Ke7 {[%clk 0:00:38]} 1/2-1/2


[Site "https://www.chess.com"]

[Event "Titled Tuesday Blitz July 6 2021"]
[White "Leitao, Rafael"]
[Black "Sukandar, Irine Kharisma"]
[WhiteFideId "2101246"]
[BlackFideId "7101937"]
[WhiteElo "2609"]
[BlackElo "2313"]
[Result "1-0"]
[Round "02"]
[TimeControl "180+1"]
[Date "2021.07.06"]
[WhiteClock "0:00:44"]
[BlackClock "0:00:05"]

1. c4 {[%clk 0:03:00]}  e5 {[%clk 0:02:59]} 2. Nc3 {[%clk 0:03:00]}  Nf6 {[%clk 0:02:59]} 3. Nf3 {[%clk 0:02:56]}  Nc6 {[%clk 0:02:59]} 4. e4 {[%clk 0:02:56]}  Bb4 {[%clk 0:02:56]} 5. d3 {[%clk 0:02:53]}  d6 {[%clk 0:02:50]} 6. a3 {[%clk 0:02:52]}  Bxc3+ {[%clk 0:02:42]} 7. bxc3 {[%clk 0:02:53]}  h6 {[%clk 0:02:40]} 8. g3 {[%clk 0:02:49]}  O-O {[%clk 0:02:34]} 9. Bg2 {[%clk 0:02:49]}  Nh7 {[%clk 0:02:31]} 10. O-O {[%clk 0:02:24]}  f5 {[%clk 0:02:31]} 11. exf5 {[%clk 0:02:24]}  Bxf5 {[%clk 0:02:30]} 12. Nh4 {[%clk 0:02:23]}  Be6 {[%clk 0:02:24]} 13. Rb1 {[%clk 0:02:08]}  Rb8 {[%clk 0:02:23]} 14. Qe2 {[%clk 0:01:47]}  Ng5 {[%clk 0:02:14]} 15. f4 {[%clk 0:01:32]}  exf4 {[%clk 0:02:12]} 16. gxf4 {[%clk 0:01:32]}  Nh3+ {[%clk 0:02:11]} 17. Kh1 {[%clk 0:01:32]}  Bd7 {[%clk 0:02:07]} 18. Qh5 {[%clk 0:01:18]}  Qe8 {[%clk 0:01:53]} 19. Bd5+ {[%clk 0:01:17]}  Kh7 {[%clk 0:01:45]} 20. Be4+ {[%clk 0:01:14]}  Kg8 {[%clk 0:01:45]} 21. Ng6 {[%clk 0:01:13]}  Ng5 {[%clk 0:01:13]} 22. Bd5+ {[%clk 0:01:05]}  Be6 {[%clk 0:01:12]} 23. Bd2 {[%clk 0:00:59]}  Rf6 {[%clk 0:00:51]} 24. fxg5 {[%clk 0:00:59]}  Rxg6 {[%clk 0:00:40]} 25. Be4 {[%clk 0:00:59]}  Rxg5 {[%clk 0:00:30]} 26. Qxe8+ {[%clk 0:00:57]}  Rxe8 {[%clk 0:00:30]} 27. Bxg5 {[%clk 0:00:57]}  hxg5 {[%clk 0:00:31]} 28. Rxb7 {[%clk 0:00:56]}  Ne5 {[%clk 0:00:20]} 29. Rxc7 {[%clk 0:00:56]}  Bh3 {[%clk 0:00:17]} 30. Rg1 {[%clk 0:00:50]}  g4 {[%clk 0:00:14]} 31. Rxa7 {[%clk 0:00:49]}  Rf8 {[%clk 0:00:14]} 32. Ra8 {[%clk 0:00:48]}  Rxa8 {[%clk 0:00:05]} 33. Bxa8 {[%clk 0:00:47]}  Nxd3 {[%clk 0:00:06]} 34. Ra1 {[%clk 0:00:47]}  Nf2+ {[%clk 0:00:04]} 35. Kg1 {[%clk 0:00:47]}  Nd3 {[%clk 0:00:04]} 36. a4 {[%clk 0:00:46]}  Nc5 {[%clk 0:00:05]} 37. a5 {[%clk 0:00:46]}  Nb3 {[%clk 0:00:05]} 38. Ra3 {[%clk 0:00:45]}  Nd2 {[%clk 0:00:05]} 39. a6 {[%clk 0:00:44]}  Nxc4 {[%clk 0:00:05]} 40. Bd5+ {[%clk 0:00:44]} 1-0


[Site "https://www.chess.com"]

[Event "Titled Tuesday Blitz July 6 2021"]
[White "Leve, Nitai"]
[Black "Matveev, Vladimir"]
[WhiteFideId "2006898"]
[BlackFideId "24130753"]
[WhiteElo "2144"]
[BlackElo "2354"]
[Result "1-0"]
[Round "02"]
[TimeControl "180+1"]
[Date "2021.07.06"]
[WhiteClock "0:01:25"]
[BlackClock "0:01:44"]

1. e4 {[%clk 0:03:00]}  c5 {[%clk 0:03:00]} 2. Nf3 {[%clk 0:02:55]}  d6 {[%clk 0:03:00]} 3. d4 {[%clk 0:02:54]}  cxd4 {[%clk 0:03:01]} 4. Qxd4 {[%clk 0:02:55]}  e5 {[%clk 0:03:01]} 5. Qe3 {[%clk 0:02:55]}  Nc6 {[%clk 0:02:57]} 6. h3 {[%clk 0:02:54]}  f5 {[%clk 0:02:53]} 7. exf5 {[%clk 0:02:53]}  Bxf5 {[%clk 0:02:54]} 8. Bc4 {[%clk 0:02:50]}  Nf6 {[%clk 0:02:50]} 9. O-O {[%clk 0:02:49]}  Bxc2 {[%clk 0:02:38]} 10. Nc3 {[%clk 0:02:35]}  Qb6 {[%clk 0:02:24]} 11. Qe2 {[%clk 0:02:34]}  Bg6 {[%clk 0:02:21]} 12. Bg5 {[%clk 0:02:33]}  Bh5 {[%clk 0:02:15]} 13. g4 {[%clk 0:02:18]}  Bf7 {[%clk 0:02:10]} 14. Bxf7+ {[%clk 0:02:09]}  Kxf7 {[%clk 0:02:11]} 15. Qc4+ {[%clk 0:02:09]}  d5 {[%clk 0:02:04]} 16. Nxd5 {[%clk 0:02:06]}  Qc5 {[%clk 0:02:04]} 17. Ne3+ {[%clk 0:01:48]}  Qxc4 {[%clk 0:01:54]} 18. Nxc4 {[%clk 0:01:49]}  Re8 {[%clk 0:01:54]} 19. Bh4 {[%clk 0:01:33]}  h6 {[%clk 0:01:53]} 20. Bg3 {[%clk 0:01:33]}  e4 {[%clk 0:01:51]} 21. Nfe5+ {[%clk 0:01:33]}  Nxe5 {[%clk 0:01:52]} 22. Nxe5+ {[%clk 0:01:34]}  Ke6 {[%clk 0:01:51]} 23. Ng6 {[%clk 0:01:30]}  Rg8 {[%clk 0:01:50]} 24. Rac1 {[%clk 0:01:28]}  Bb4 {[%clk 0:01:44]} 25. Rc7 {[%clk 0:01:25]} 1-0


[Site "https://www.chess.com"]